bitfinex/quotes_BTCUSD_20241102
["timestamp","ask_amount","ask_price","bid_price","bid_amount"]
[1730551462779,0.01846543,69616.0,69615.0,0.114553]
[1730551463003,0.05336138,69616.0,69615.0,0.114553]
[1730551464347,0.05196138,69616.0,69615.0,0.114553]
[1730551464764,0.05336138,69616.0,69615.0,0.114553]
[1730551465454,0.37646662,69616.0,69615.0,0.014]
[1730551465667,0.39883295,69616.0,69615.0,0.014]
[1730551465893,0.37646662,69616.0,69615.0,0.014]
[1730551466118,0.38046662,69616.0,69615.0,0.01]
[1730551466581,0.38044618,69616.0,69615.0,0.006]
[1730551466793,0.44490882,69616.0,69615.0,0.006]
[1730551467008,0.0014,69604.0,69603.0,0.100569]
[1730551467218,0.04969887,69604.0,69603.0,0.100569]
[1730551467883,0.0282327,69604.0,69603.0,0.100569]
[1730551468091,0.04969887,69604.0,69603.0,0.100569]
[1730551468265,0.02822948,69604.0,69603.0,0.100569]
[1730551468479,0.04969565,69604.0,69603.0,0.100569]
[1730551469037,0.01481635,69604.0,69603.0,0.100569]
[1730551469444,0.04970014,69604.0,69603.0,0.100569]
[1730551469618,0.03628252,69604.0,69603.0,0.100569]
[1730551469779,0.01581635,69604.0,69603.0,0.100569]
[1730551469995,0.01581782,69604.0,69603.0,0.102569]
[1730551470241,0.03728612,69604.0,69603.0,0.102569]
[1730551470469,0.0024,69604.0,69603.0,0.102569]
[1730551470673,0.03728486,69604.0,69603.0,0.102569]
[1730551471288,0.01581725,69604.0,69603.0,0.102569]
[1730551471508,0.03728486,69604.0,69603.0,0.102569]
[1730551471714,0.05070556,69604.0,69603.0,0.102569]
[1730551471925,0.01581725,69604.0,69603.0,0.102569]
[1730551472150,0.050724,69604.0,69603.0,0.102569]
[1730551473002,0.050724,69604.0,69603.0,0.002]
[1730551473498,0.07805595,69604.0,69603.0,0.002]
[1730551473707,0.13029995,69604.0,69603.0,0.002]
[1730551473935,0.17864863,69604.0,69603.0,0.002]
[1730551474160,0.15131668,69604.0,69603.0,0.002]
[1730551474837,0.05074868,69604.0,69603.0,0.002]
[1730551475101,0.15131668,69604.0,69603.0,0.002]
[1730551477333,0.13788649,69604.0,69603.0,0.002]
[1730551477569,0.15132224,69604.0,69603.0,0.002]
[1730551478449,0.19649553,69604.0,69603.0,0.002]
[1730551478910,0.15132224,69604.0,69603.0,0.002]
[1730551480450,0.24932224,69604.0,69603.0,0.002]
[1730551480667,0.15132224,69604.0,69603.0,0.002]
[1730551480892,0.102968,69604.0,69603.0,0.002]
[1730551481139,0.11640256,69604.0,69603.0,0.002]
[1730551481353,0.15133149,69604.0,69603.0,0.002]
[1730551483164,0.15795034,69604.0,69603.0,0.002]
[1730551483626,0.1445157,69604.0,69603.0,0.002]
[1730551483835,0.15794987,69604.0,69603.0,0.002]
[1730551484520,0.05738187,69604.0,69603.0,0.002]
[1730551485478,0.05738187,69604.0,69603.0,0.10257]
[1730551486153,0.01583417,69604.0,69603.0,0.10257]
[1730551486577,0.01747617,69604.0,69603.0,0.10257]
[1730551489465,0.01607617,69604.0,69603.0,0.10257]
[1730551489970,0.01747617,69604.0,69603.0,0.10257]
[1730551492325,0.004042,69604.0,69603.0,0.10257]
[1730551492532,0.01748476,69604.0,69603.0,0.10257]
[1730551493878,0.03899552,69604.0,69603.0,0.10257]
[1730551494093,0.01748476,69604.0,69603.0,0.10257]
[1730551494515,0.01608476,69604.0,69603.0,0.10257]
[1730551495169,0.01748476,69604.0,69603.0,0.10257]
[1730551495604,0.01608476,69604.0,69603.0,0.10257]
[1730551495816,0.01608476,69604.0,69603.0,0.27237]
[1730551496038,0.002642,69604.0,69603.0,0.27237]
[1730551496253,0.01608995,69604.0,69603.0,0.27237]
[1730551499605,0.01608995,69604.0,69603.0,0.27037]
[1730551500006,0.01708995,69604.0,69603.0,0.27637]
[1730551500224,0.01608995,69604.0,69603.0,0.41769845]
[1730551500351,0.01508995,69604.0,69603.0,0.40882525]
[1730551500552,0.01508995,69604.0,69603.0,0.41282525]
[1730551500762,0.01508995,69604.0,69603.0,0.41882525]
[1730551500763,0.01608995,69604.0,69603.0,0.41882525]
[1730551500983,0.01608995,69604.0,69603.0,0.41482525]
[1730551501185,0.01508995,69604.0,69603.0,0.40882525]
[1730551501450,0.01608995,69604.0,69603.0,0.41482525]
[1730551501851,0.01508995,69604.0,69603.0,0.40882525]
[1730551502291,0.01608995,69604.0,69603.0,0.41482525]
[1730551502705,0.003642,69604.0,69603.0,0.42382525]
[1730551502925,0.01708563,69604.0,69603.0,0.41482525]
[1730551503372,0.01808563,69604.0,69603.0,0.42582525]
[1730551503804,0.004642,69604.0,69603.0,0.42582525]
[1730551504276,0.004642,69604.0,69603.0,0.54014938]
[1730551504519,0.004642,69604.0,69603.0,0.43082525]
[1730551504752,0.004642,69604.0,69603.0,0.43642525]
[1730551504961,0.004642,69604.0,69603.0,0.43442525]
[1730551505194,0.004642,69604.0,69603.0,0.67343264]
[1730551505418,0.004642,69604.0,69603.0,0.64828847]
[1730551505628,0.004642,69604.0,69603.0,0.65188847]
[1730551506767,0.004642,69604.0,69603.0,0.4989795]
[1730551507478,0.004642,69604.0,69603.0,0.6516362]
[1730551507683,0.004642,69604.0,69603.0,0.43442525]
[1730551508320,0.004642,69604.0,69603.0,0.4989795]
[1730551508545,0.004642,69604.0,69603.0,0.43442525]
[1730551509672,0.004642,69604.0,69603.0,0.47744209]
[1730551509903,0.004642,69604.0,69603.0,0.47744178]
[1730551510128,0.004642,69604.0,69603.0,0.43442525]
[1730551510340,0.004642,69604.0,69603.0,0.47744193]
[1730551510570,0.004642,69604.0,69603.0,0.47944193]
[1730551510995,0.004642,69604.0,69603.0,0.58876606]
[1730551511651,0.004642,69604.0,69603.0,0.68876606]
[1730551511869,0.004642,69604.0,69603.0,0.88471058]
[1730551512283,0.004642,69604.0,69603.0,0.9106834]
[1730551513415,0.004642,69604.0,69603.0,0.80316366]
[1730551513638,0.004642,69604.0,69603.0,0.9106834]
[1730551514378,0.004642,69604.0,69603.0,0.80316366]
[1730551514598,0.001642,69604.0,69603.0,0.78616366]
[1730551515247,0.002642,69604.0,69603.0,0.87812898]
[1730551515465,0.002642,69604.0,69603.0,0.79216366]
[1730551515908,0.002642,69604.0,69603.0,0.87811424]
[1730551516122,0.002642,69604.0,69603.0,0.89211424]
[1730551516581,0.002642,69604.0,69603.0,0.80616366]
[1730551517288,0.002642,69604.0,69603.0,0.89211424]
[1730551517544,0.002642,69604.0,69603.0,0.97993786]
[1730551517763,0.001642,69616.0,69615.0,0.38397713]
[1730551517987,0.001642,69616.0,69615.0,0.52243238]
[1730551518412,0.001642,69616.0,69615.0,0.52043238]
[1730551519295,0.001642,69616.0,69615.0,0.52743238]
[1730551520613,0.001642,69616.0,69615.0,0.53243238]
[1730551529208,0.001642,69616.0,69615.0,0.53943238]
[1730551529436,0.001642,69616.0,69615.0,0.69005651]
[1730551530326,0.001642,69616.0,69615.0,0.58073238]
[1730551530799,0.001642,69616.0,69615.0,0.57873238]
[1730551531466,0.001642,69616.0,69615.0,0.68805651]
[1730551531938,0.001642,69616.0,69615.0,0.85538296]
[1730551532633,0.001642,69616.0,69615.0,0.79365651]
[1730551533752,0.001642,69616.0,69615.0,1.00819899]
[1730551533991,0.001642,69616.0,69615.0,0.94369153]
[1730551534215,0.001642,69616.0,69615.0,1.07434523]
[1730551534483,0.001642,69616.0,69615.0,1.05286844]
[1730551534715,0.001642,69616.0,69615.0,1.05286963]
[1730551534944,0.001642,69616.0,69615.0,0.89459569]
[1730551535176,0.001642,69616.0,69615.0,0.85165883]
[1730551536095,0.001642,69616.0,69615.0,0.84965883]
[1730551536331,0.001642,69616.0,69615.0,0.85165883]
[1730551536571,0.001642,69616.0,69615.0,0.89459573]
[1730551538234,0.001642,69616.0,69615.0,0.89459761]
[1730551538522,0.001642,69616.0,69615.0,0.67255883]
[1730551538750,0.001642,69616.0,69615.0,0.4596347]
[1730551539736,0.001642,69616.0,69615.0,0.56895883]
[1730551540466,0.001642,69616.0,69615.0,0.4596347]
[1730551540912,0.001642,69616.0,69615.0,0.32117945]
[1730551541346,0.00839981,69616.0,69615.0,0.32117945]
[1730551541559,0.01508838,69616.0,69615.0,0.32117945]
[1730551541777,0.009126,69616.0,69615.0,0.56895883]
[1730551542003,0.001642,69616.0,69615.0,0.56895883]
[1730551548239,0.001642,69616.0,69615.0,0.4596347]
[1730551548687,0.001642,69616.0,69615.0,0.32117945]
[1730551548903,0.01508825,69616.0,69615.0,0.32117945]
[1730551550533,0.01508825,69616.0,69615.0,0.43050358]
[1730551551450,0.001642,69616.0,69615.0,0.43050358]
[1730551551888,0.01508545,69616.0,69615.0,0.43050358]
[1730551552349,0.001642,69616.0,69615.0,0.43050358]
[1730551552538,0.01508449,69616.0,69615.0,0.43050358]
[1730551553198,0.001642,69616.0,69615.0,0.43050358]
[1730551555243,0.001642,69616.0,69615.0,0.43038207]
[1730551557432,0.001642,69616.0,69615.0,0.32105794]
[1730551557678,0.1947797,69616.0,69615.0,0.22050494]
[1730551557912,0.33026607,69616.0,69615.0,0.22050494]
[1730551558137,0.32423592,69616.0,69615.0,0.22050494]
[1730551559275,0.32423592,69616.0,69615.0,0.21350494]
[1730551559507,0.28929953,69616.0,69615.0,0.20850494]
[1730551559732,0.32421109,69616.0,69615.0,0.21850494]
[1730551559958,0.32421109,69616.0,69615.0,0.21250494]
[1730551560215,0.32521109,69616.0,69615.0,0.20850494]
[1730551560429,0.32821109,69616.0,69615.0,0.20850494]
[1730551560652,0.32721109,69616.0,69615.0,0.20850494]
[1730551560859,0.32921109,69616.0,69615.0,0.20850494]
[1730551561069,0.32621109,69616.0,69615.0,0.20850494]
[1730551561328,0.33021109,69616.0,69615.0,0.20850494]
[1730551561553,0.29529953,69616.0,69615.0,0.20850494]
[1730551561764,0.33020146,69616.0,69615.0,0.20850494]
[1730551562203,0.30872345,69616.0,69615.0,0.20850494]
[1730551562386,0.33020182,69616.0,69615.0,0.20850494]
[1730551563198,0.22965082,69616.0,69615.0,0.20850494]
[1730551563398,0.20817249,69616.0,69615.0,0.20850494]
[1730551563690,0.02987249,69616.0,69615.0,0.41838207]
[1730551564123,0.02246596,69616.0,69615.0,0.41838207]
[1730551564325,0.02106596,69616.0,69615.0,0.41838207]
[1730551564522,0.01706596,69616.0,69615.0,0.41838207]
[1730551564855,0.01846596,69616.0,69615.0,0.41938207]
[1730551565752,0.01646596,69616.0,69615.0,0.31005794]
[1730551565961,0.01647041,69616.0,69615.0,0.31405794]
[1730551566397,0.01647041,69616.0,69615.0,0.30905794]
[1730551566631,0.01647041,69616.0,69615.0,0.31405794]
[1730551566856,0.01747041,69616.0,69615.0,0.32105794]
[1730551567072,0.01747041,69616.0,69615.0,0.31605794]
[1730551567278,0.01647041,69616.0,69615.0,0.31305794]
[1730551567749,0.01647041,69616.0,69615.0,0.31405794]
[1730551568638,0.02990993,69616.0,69615.0,0.31405794]
[1730551568858,0.05141352,69616.0,69615.0,0.31405794]
[1730551569139,0.04532942,69616.0,69615.0,0.31405794]
[1730551569603,0.04532942,69616.0,69615.0,0.30905794]
[1730551569824,0.03190312,69616.0,69615.0,0.30905794]
[1730551570034,0.04534431,69616.0,69615.0,0.31105794]
[1730551570253,0.03798889,69616.0,69615.0,0.31105794]
[1730551571994,0.05142998,69616.0,69615.0,0.31105794]
[1730551573505,0.003042,69616.0,69615.0,0.31105794]
[1730551573723,0.0500327,69616.0,69615.0,0.31105794]
[1730551573940,0.05143388,69616.0,69615.0,0.31105794]
[1730551574191,0.05003388,69616.0,69615.0,0.31105794]
[1730551574417,0.05143388,69616.0,69615.0,0.31105794]
[1730551575053,0.03799345,69616.0,69615.0,0.31105794]
[1730551575275,0.01508431,69616.0,69615.0,0.31105794]
[1730551575608,0.05003925,69616.0,69615.0,0.31105794]
[1730551575609,0.05143925,69616.0,69615.0,0.31105794]
[1730551576025,0.05003925,69616.0,69615.0,0.31105794]
[1730551576218,0.05143925,69616.0,69615.0,0.31105794]
[1730551576849,0.01648431,69616.0,69615.0,0.31105794]
[1730551577507,0.0514455,69616.0,69615.0,0.31105794]
[1730551579176,0.0500455,69616.0,69615.0,0.31105794]
[1730551579539,0.0514455,69616.0,69615.0,0.31105794]
[1730551580313,0.03800851,69616.0,69615.0,0.31105794]
[1730551580583,0.05145717,69616.0,69615.0,0.31105794]
[1730551580853,0.01649066,69616.0,69615.0,0.31105794]
[1730551581083,0.01509066,69616.0,69615.0,0.39095794]
[1730551581525,0.01649066,69616.0,69615.0,0.39095794]
[1730551581736,0.01509066,69616.0,69615.0,0.39095794]
[1730551583549,0.01649066,69616.0,69615.0,0.39095794]
[1730551583809,0.01649066,69616.0,69615.0,0.31105794]
[1730551584050,0.14265432,69616.0,69615.0,0.21050494]
[1730551584296,0.24320532,69616.0,69615.0,0.21050494]
[1730551584580,0.14265131,69616.0,69615.0,0.21050494]
[1730551584800,0.35252644,69616.0,69615.0,0.21050494]
[1730551585250,0.35252644,69616.0,69615.0,0.20850494]
[1730551585704,0.35552644,69616.0,69615.0,0.20850494]
[1730551586163,0.36052644,69616.0,69615.0,0.20850494]
[1730551586627,0.35252644,69616.0,69615.0,0.20850494]
[1730551586853,0.35652644,69616.0,69615.0,0.20950494]
[1730551587074,0.36852644,69616.0,69615.0,0.21050494]
[1730551587294,0.25520231,69616.0,69615.0,0.20950494]
[1730551587738,0.15465131,69616.0,69615.0,0.20950494]
[1730551588270,0.25518814,69616.0,69615.0,0.20950494]
[1730551588703,0.24718814,69616.0,69615.0,0.20950494]
[1730551588925,0.24718814,69616.0,69615.0,0.21050494]
[1730551589151,0.25418814,69616.0,69615.0,0.20950494]
[1730551589380,0.25818814,69616.0,69615.0,0.21050494]
[1730551589639,0.25818814,69616.0,69615.0,0.20850494]
[1730551589865,0.24718814,69616.0,69615.0,0.20850494]
[1730551590095,0.26218814,69616.0,69615.0,0.21050494]
[1730551590317,0.25418814,69616.0,69615.0,0.20950494]
[1730551590573,0.24318814,69616.0,69615.0,0.20850494]
[1730551590805,0.25718814,69616.0,69615.0,0.21050494]
[1730551591032,0.27959003,69616.0,69615.0,0.21050494]
[1730551591296,0.25718814,69616.0,69615.0,0.21050494]
[1730551591937,0.208793,69616.0,69615.0,0.21050494]
[1730551592179,0.25718247,69616.0,69615.0,0.21050494]
[1730551593934,0.5327376,69616.0,69615.0,0.21050494]
[1730551594848,0.90847521,69616.0,69615.0,0.0433]
[1730551595068,0.90847521,69616.0,69604.0,0.000821]
[1730551595069,0.234667,69605.0,69604.0,0.000821]
[1730551595307,0.8988985,69605.0,69604.0,0.000821]
[1730551595565,0.74745031,69605.0,69604.0,0.000821]
[1730551595807,0.79576553,69605.0,69604.0,0.000821]
[1730551596056,0.92082193,69605.0,69604.0,0.000821]
[1730551596269,1.00519268,69605.0,69604.0,0.000821]
[1730551596482,1.00919268,69605.0,69604.0,0.001821]
[1730551596693,0.89782193,69605.0,69604.0,0.000821]
[1730551596916,1.01819268,69605.0,69604.0,0.001821]
[1730551597135,0.91482193,69605.0,69604.0,0.002821]
[1730551597407,0.8205992,69605.0,69604.0,0.002821]
[1730551597626,0.79913563,69605.0,69604.0,0.002821]
[1730551597842,0.61772785,69605.0,69604.0,0.002821]
[1730551598537,0.50840372,69605.0,69604.0,0.002821]
[1730551598765,0.50840372,69605.0,69604.0,0.001821]
[1730551598978,0.49540372,69605.0,69604.0,0.001821]
[1730551599188,0.50940372,69605.0,69604.0,0.001821]
[1730551599428,0.51593188,69605.0,69604.0,0.001821]
[1730551599641,0.55077973,69605.0,69604.0,0.001821]
[1730551600147,0.76786896,69605.0,69604.0,0.001821]
[1730551600361,0.88596907,69605.0,69604.0,0.001821]
[1730551600591,0.84139586,69605.0,69604.0,0.001821]
[1730551601034,0.83500871,69605.0,69604.0,0.001821]
[1730551601288,0.727783,69605.0,69604.0,0.001821]
[1730551602431,0.81350755,69605.0,69604.0,0.001821]
[1730551603095,0.8133411,69605.0,69604.0,0.001821]
[1730551603331,0.77211507,69605.0,69604.0,0.001821]
[1730551604079,0.87919744,69605.0,69604.0,0.001821]
[1730551604306,0.85774986,69605.0,69604.0,0.001821]
[1730551604758,0.77207086,69605.0,69604.0,0.001821]
[1730551606696,0.0134,69600.0,69598.0,0.000822]
[1730551606924,0.81185787,69600.0,69598.0,0.000822]
[1730551607157,0.74764501,69600.0,69598.0,0.000822]
[1730551607390,0.74755357,69600.0,69598.0,0.000822]
[1730551608092,0.91887753,69600.0,69598.0,0.000822]
[1730551608321,0.96356456,69600.0,69598.0,0.000822]
[1730551608556,1.15091428,69600.0,69598.0,0.000822]
[1730551608788,0.0114,69586.0,69582.0,0.21508923]
[1730551609052,0.72257357,69586.0,69582.0,0.21508923]
[1730551609485,0.72257357,69586.0,69571.0,0.0761]
[1730551610574,0.72417321,69586.0,69571.0,0.0761]
[1730551610789,0.87239642,69586.0,69571.0,0.0761]
[1730551611989,0.85839642,69586.0,69571.0,0.0761]
[1730551612230,0.87139642,69586.0,69571.0,0.0761]
[1730551612455,0.88539642,69586.0,69571.0,0.0761]
[1730551613821,0.69169642,69586.0,69571.0,0.0761]
[1730551614085,0.44780704,69586.0,69575.0,0.0966]
[1730551614310,0.41217499,69586.0,69575.0,0.0966]
[1730551617572,0.41888332,69586.0,69575.0,0.0966]
[1730551617792,0.42957702,69586.0,69575.0,0.0966]
[1730551618025,0.51874401,69586.0,69575.0,0.0966]
[1730551618256,0.51874401,69586.0,69583.0,0.0761]
[1730551618257,0.39101124,69586.0,69583.0,0.0761]
[1730551618481,0.38032557,69586.0,69583.0,0.0761]
[1730551618700,0.28602174,69586.0,69583.0,0.0761]
[1730551618976,0.18116105,69586.0,69583.0,0.0761]
[1730551619194,0.19453234,69586.0,69584.0,0.0966]
[1730551619418,0.21681785,69586.0,69584.0,0.0966]
[1730551619639,0.18981785,69586.0,69584.0,0.0966]
[1730551620102,0.21381785,69586.0,69584.0,0.0966]
[1730551620336,0.20081785,69586.0,69584.0,0.0966]
[1730551620572,0.17853234,69586.0,69584.0,0.0966]
[1730551620805,0.16753234,69586.0,69584.0,0.0966]
[1730551621044,0.15687246,69586.0,69584.0,0.0966]
[1730551621275,0.16757693,69586.0,69584.0,0.0966]
[1730551622009,0.17757693,69586.0,69584.0,0.0966]
[1730551622252,0.18457693,69586.0,69584.0,0.0966]
[1730551622486,0.23950103,69586.0,69584.0,0.0966]
[1730551623014,0.18457693,69586.0,69584.0,0.0966]
[1730551623945,0.12570233,69586.0,69584.0,0.0966]
[1730551624175,0.18468723,69586.0,69584.0,0.0966]
[1730551626885,0.18468723,69586.0,69583.0,0.0761]
[1730551627323,0.20186444,69586.0,69583.0,0.0761]
[1730551627539,0.20193885,69586.0,69583.0,0.0761]
[1730551627748,0.25755254,69586.0,69583.0,0.0761]
[1730551627957,0.26829007,69586.0,69583.0,0.0761]
[1730551628199,0.25755255,69586.0,69583.0,0.0761]
[1730551628890,0.25755255,69586.0,69579.0,0.0966]
[1730551628891,0.25755255,69586.0,69579.0,0.0761]
[1730551629364,0.45050699,69586.0,69575.0,0.0761]
[1730551629592,0.102012,69574.0,69573.0,0.21508923]
[1730551629807,0.15140462,69574.0,69573.0,0.21508923]
[1730551630041,0.15140462,69574.0,69572.0,0.001626]
[1730551630042,0.102013,69573.0,69572.0,0.001626]
[1730551630261,0.17824953,69573.0,69572.0,0.001626]
[1730551630518,0.42082393,69573.0,69572.0,0.001626]
[1730551630774,0.42752924,69573.0,69572.0,0.001626]
[1730551631248,0.43254841,69573.0,69572.0,0.001626]
[1730551631498,0.57600366,69573.0,69572.0,0.001626]
[1730551631713,0.57800366,69573.0,69572.0,0.001626]
[1730551631933,0.102029,69562.0,69561.0,0.000813]
[1730551632156,0.2488629,69562.0,69561.0,0.000813]
[1730551632374,0.25548585,69562.0,69561.0,0.000813]
[1730551632827,0.3925411,69562.0,69561.0,0.000813]
[1730551633070,0.3925411,69562.0,69551.0,0.000821]
[1730551633071,0.235044,69552.0,69551.0,0.000821]
[1730551633285,0.45875211,69552.0,69551.0,0.000821]
[1730551633497,0.59102693,69552.0,69551.0,0.000821]
[1730551633713,0.59743118,69552.0,69551.0,0.000821]
[1730551634171,0.59943118,69552.0,69551.0,0.000821]
[1730551634453,0.51417832,69552.0,69551.0,0.000821]
[1730551634674,0.76378634,69552.0,69551.0,0.000821]
[1730551634901,0.98765687,69552.0,69551.0,0.000821]
[1730551635144,1.00933161,69552.0,69551.0,0.000821]
[1730551635354,0.86878505,69552.0,69551.0,0.000821]
[1730551635564,1.02799599,69552.0,69551.0,0.000821]
[1730551635777,1.04199599,69552.0,69551.0,0.000821]
[1730551636038,1.01399599,69552.0,69551.0,0.000821]
[1730551636270,1.00499779,69552.0,69551.0,0.000821]
[1730551636502,0.99031146,69552.0,69551.0,0.000821]
[1730551636726,0.99028485,69552.0,69551.0,0.000821]
[1730551636952,0.82161694,69552.0,69551.0,0.000821]
[1730551637631,0.74471694,69552.0,69551.0,0.000821]
[1730551637872,0.65091694,69552.0,69551.0,0.000821]
[1730551638109,0.41864212,69552.0,69551.0,0.000821]
[1730551638345,0.39564212,69552.0,69551.0,0.000821]
[1730551638584,0.38164212,69552.0,69551.0,0.000821]
[1730551638819,0.36764212,69552.0,69551.0,0.000821]
[1730551639052,0.46617186,69552.0,69551.0,0.000821]
[1730551639257,0.54217051,69552.0,69551.0,0.000821]
[1730551639477,0.64217051,69552.0,69551.0,0.000821]
[1730551639693,0.65117051,69552.0,69551.0,0.000821]
[1730551639900,0.66517051,69552.0,69551.0,0.000821]
[1730551640114,0.67917051,69552.0,69551.0,0.000821]
[1730551640318,0.60317186,69552.0,69551.0,0.000821]
[1730551640783,0.57534674,69552.0,69551.0,0.000821]
[1730551641252,0.54427839,69552.0,69551.0,0.000821]
[1730551641898,0.55827839,69552.0,69551.0,0.000821]
[1730551642130,0.58960404,69552.0,69551.0,0.000821]
[1730551642450,0.52721464,69552.0,69551.0,0.000821]
[1730551642700,0.51521464,69552.0,69551.0,0.000821]
[1730551642957,0.52911281,69552.0,69551.0,0.000821]
[1730551643113,0.54111281,69552.0,69551.0,0.000821]
[1730551643315,0.52711281,69552.0,69551.0,0.000821]
[1730551643496,0.51311281,69552.0,69551.0,0.000821]
[1730551644051,0.52711281,69552.0,69551.0,0.000821]
[1730551644764,0.54111281,69552.0,69551.0,0.000821]
[1730551644961,0.49233141,69552.0,69551.0,0.000821]
[1730551645194,0.38451183,69552.0,69551.0,0.000821]
[1730551645393,0.39851183,69552.0,69551.0,0.000821]
[1730551645612,0.41251183,69552.0,69551.0,0.000821]
[1730551645801,0.39545942,69552.0,69551.0,0.000821]
[1730551646045,0.38145942,69552.0,69551.0,0.000821]
[1730551646234,0.36745942,69552.0,69551.0,0.000821]
[1730551646486,0.38145942,69552.0,69551.0,0.000821]
[1730551646703,0.47386196,69552.0,69551.0,0.000821]
[1730551646910,0.45986196,69552.0,69551.0,0.000821]
[1730551647335,0.47386196,69552.0,69551.0,0.000821]
[1730551647946,0.45986196,69552.0,69551.0,0.000821]
[1730551648352,0.47386196,69552.0,69551.0,0.000821]
[1730551650844,0.39045942,69552.0,69551.0,0.000821]
[1730551651092,0.05978451,69552.0,69551.0,0.076521]
[1730551651306,0.14977076,69552.0,69551.0,0.076521]
[1730551651975,0.02112676,69552.0,69551.0,0.076521]
[1730551652182,0.02113499,69552.0,69551.0,0.076521]
[1730551652416,0.02113499,69552.0,69551.0,0.177166]
[1730551652417,0.03580425,69552.0,69551.0,0.177166]
[1730551652611,0.0294,69552.0,69551.0,0.076521]
[1730551652834,0.03733398,69552.0,69551.0,0.076521]
[1730551653060,0.02333398,69552.0,69551.0,0.076521]
[1730551653296,0.05399451,69552.0,69551.0,0.076521]
[1730551653531,0.03266495,69552.0,69551.0,0.177166]
[1730551653762,0.02473097,69552.0,69551.0,0.177166]
[1730551654009,0.02333097,69552.0,69551.0,0.177166]
[1730551654229,0.02473097,69552.0,69551.0,0.268366]
[1730551654669,0.01473097,69552.0,69551.0,0.167721]
[1730551654907,0.05432998,69552.0,69551.0,0.167721]
[1730551655138,0.07092998,69552.0,69551.0,0.167721]
[1730551655346,0.06432998,69552.0,69551.0,0.167721]
[1730551655788,0.02366518,69552.0,69551.0,0.167721]
[1730551655988,0.02366518,69552.0,69551.0,0.268366]
[1730551656163,0.04899474,69552.0,69551.0,0.268366]
[1730551656404,0.04999474,69552.0,69551.0,0.167721]
[1730551656769,0.15063874,69552.0,69551.0,0.076521]
[1730551656953,0.21931512,69552.0,69551.0,0.076521]
[1730551657640,0.22095912,69552.0,69551.0,0.076521]
[1730551658071,0.2209677,69552.0,69551.0,0.076521]
[1730551658300,0.23166834,69552.0,69551.0,0.076521]
[1730551658491,0.25388663,69552.0,69551.0,0.076521]
[1730551659445,0.24066358,69552.0,69551.0,0.076521]
[1730551659649,0.26297778,69552.0,69551.0,0.076521]
[1730551660283,0.24066358,69552.0,69551.0,0.076521]
[1730551664171,0.26211327,69552.0,69551.0,0.076521]
[1730551665457,0.21851346,69552.0,69551.0,0.076521]
[1730551665659,0.2516794,69552.0,69551.0,0.076521]
[1730551665866,0.19635973,69552.0,69551.0,0.076521]
[1730551666922,0.19637724,69552.0,69551.0,0.076521]
[1730551667135,0.17490742,69552.0,69551.0,0.076521]
[1730551668481,0.16591181,69552.0,69551.0,0.076521]
[1730551671828,0.06526781,69552.0,69551.0,0.076521]
[1730551672051,0.08765436,69552.0,69551.0,0.076521]
[1730551672816,0.06526781,69552.0,69551.0,0.076521]
[1730551673027,0.06533164,69552.0,69551.0,0.076521]
[1730551673239,0.16597564,69552.0,69551.0,0.076521]
[1730551673470,0.06393164,69552.0,69551.0,0.43563391]
[1730551673682,0.05050013,69552.0,69551.0,0.57408916]
[1730551673898,0.04256592,69552.0,69551.0,0.57408916]
[1730551674373,0.02107551,69552.0,69551.0,0.57408916]
[1730551674610,0.01907551,69552.0,69551.0,0.57408916]
[1730551674826,0.01507551,69552.0,69551.0,0.57408916]
[1730551675034,0.02007551,69552.0,69551.0,0.57408916]
[1730551675243,0.02007551,69552.0,69551.0,0.268966]
[1730551675483,0.04055165,69552.0,69551.0,0.268966]
[1730551675696,0.03755165,69552.0,69551.0,0.269966]
[1730551675925,0.05197391,69552.0,69551.0,0.273966]
[1730551676157,0.05097391,69552.0,69551.0,0.272966]
[1730551676369,0.05197391,69552.0,69551.0,0.273966]
[1730551676597,0.05097391,69552.0,69551.0,0.268966]
[1730551676810,0.01606632,69552.0,69551.0,0.268966]
[1730551677044,0.03754203,69552.0,69551.0,0.268966]
[1730551677699,0.03754203,69552.0,69551.0,0.5769646]
[1730551677927,0.03754203,69552.0,69551.0,0.57408916]
[1730551677928,0.01606632,69552.0,69551.0,0.57408916]
[1730551678132,0.01706632,69552.0,69551.0,0.57708916]
[1730551678346,0.01506632,69552.0,69551.0,0.57608916]
[1730551678558,0.01506632,69552.0,69551.0,0.57408916]
[1730551678765,0.01506632,69552.0,69551.0,0.57508916]
[1730551678969,0.01506632,69552.0,69551.0,0.57708916]
[1730551679409,0.01606632,69552.0,69551.0,0.40842125]
[1730551679632,0.03753781,69552.0,69551.0,0.077521]
[1730551679861,0.06235042,69552.0,69551.0,0.081521]
[1730551680128,0.14211324,69552.0,69551.0,0.081521]
[1730551680333,0.06773667,69552.0,69551.0,0.182166]
[1730551680659,0.06913812,69552.0,69551.0,0.182166]
[1730551680869,0.06713812,69552.0,69551.0,0.177166]
[1730551681077,0.06035187,69552.0,69551.0,0.177166]
[1730551681291,0.06235187,69552.0,69551.0,0.182166]
[1730551681503,0.06235187,69552.0,69551.0,0.181166]
[1730551681718,0.06813812,69552.0,69551.0,0.177166]
[1730551681938,0.06813812,69552.0,69551.0,0.077521]
[1730551682165,0.09981078,69552.0,69551.0,0.077521]
[1730551682591,0.09981078,69552.0,69551.0,0.078521]
[1730551682833,0.09981078,69552.0,69551.0,0.077521]
[1730551683072,0.08861248,69552.0,69551.0,0.076521]
[1730551683490,0.18925648,69552.0,69551.0,0.000821]
[1730551683713,0.23104728,69552.0,69551.0,0.000821]
[1730551684438,0.23104728,69552.0,69551.0,0.001821]
[1730551684885,0.23704728,69552.0,69551.0,0.001821]
[1730551685303,0.23104728,69552.0,69551.0,0.000821]
[1730551685517,0.23704728,69552.0,69551.0,0.000821]
[1730551685727,0.23104728,69552.0,69551.0,0.000821]
[1730551685935,0.18925648,69552.0,69551.0,0.000821]
[1730551686140,0.19825648,69552.0,69551.0,0.000821]
[1730551686385,0.17678026,69552.0,69551.0,0.000821]
[1730551686822,0.18378026,69552.0,69551.0,0.000821]
[1730551687322,0.20524862,69552.0,69551.0,0.000821]
[1730551687523,0.27081953,69552.0,69551.0,0.000821]
[1730551687964,0.41427478,69552.0,69551.0,0.000821]
[1730551688175,0.80334117,69552.0,69551.0,0.000821]
[1730551688415,0.80834117,69552.0,69551.0,0.000821]
[1730551688621,0.79934117,69552.0,69551.0,0.000821]
[1730551688831,0.80934117,69552.0,69551.0,0.000821]